fUST/lending_fUST_20241105
["ID","MTS","AMOUNT","RATE_DAILY","PERIOD"]
[341333930,1730814426103,-215.37326506,0.00020465,2]
[341333931,1730814436103,-160.530949,0.00020286,2]
[341333932,1730814436126,-2017.62221402,0.00020465,2]
[341333933,1730814436155,-601.230688,0.00020712,2]
[341333934,1730814436179,-520.83333333,0.00021062,2]
[341333935,1730814436202,-601.230688,0.00021397,2]
[341333936,1730814436224,-300.0,0.00021647,2]
[341333937,1730814436247,-300.0,0.00021647,2]
[341333938,1730814436272,-343.34241742,0.00021648,2]
[341333939,1730814436295,-500.0,0.00021648,2]
[341333940,1730814436321,-500.0,0.00021648,2]
[341333941,1730814436349,-500.0,0.00021648,2]
[341333942,1730814436374,-500.0,0.00021648,2]
[341333943,1730814436401,-522.92867892,0.00021648,2]
[341333944,1730814436432,-468.15258386,0.00021648,2]
[341333945,1730814443107,-56.45130161,0.00021648,2]
[341333946,1730814443130,-1113.08117276,0.00021754,2]
[341333947,1730814483750,232.6684028,0.00013973,2]
[341333948,1730814619942,520.83333333,0.00020185,2]
[341333999,1730814646456,-113.83315545,0.0002081,2]
[341334010,1730814977511,259.343988,0.00013973,2]
[341334019,1730815232247,520.83333333,0.00020185,2]
[341334020,1730815535131,-393.736381,0.00020377,2]
[341334021,1730815535154,-9.37019653,0.00020403,2]
[341334022,1730815542096,-290.62980347,0.00020403,2]
[341334023,1730815542120,-196.27198349,0.00020403,2]
[341334024,1730815634914,3000.0,0.00019392,2]
[341334025,1730815640154,-188.18400904,0.00020277,2]
[341334026,1730815640178,-1756.25554546,0.00020313,2]
[341334027,1730815640199,-520.83333333,0.00020359,2]
[341334028,1730815640221,-300.0,0.00020402,2]
[341334029,1730815640243,-300.0,0.00020402,2]
[341334030,1730815640268,-169.21429766,0.00020403,2]
[341334031,1730815640293,-500.0,0.00020403,2]
[341334032,1730815640318,-500.0,0.00020403,2]
[341334033,1730815640341,-500.0,0.00020403,2]
[341334034,1730815640365,-500.0,0.00020403,2]
[341334035,1730815640390,-500.0,0.00020403,2]
[341334036,1730815640413,-583.65840338,0.00020403,2]
[341334037,1730815640439,-622.2126,0.00020403,2]
[341334038,1730815640461,-155.09404728,0.00020403,2]
[341334039,1730815640484,-287.69501409,0.00020403,2]
[341334040,1730815640509,-24900.0,0.00020404,2]
[341334041,1730815640533,-259.343988,0.00020447,2]
[341334042,1730815640556,-208.152854,0.00020482,2]
[341334043,1730815640578,-393.736381,0.00021062,2]
[341334044,1730815640600,-393.736381,0.00021747,2]
[341334045,1730815640623,-187.878336,0.00021917,2]
[341334046,1730815640646,-5000.0,0.00021917,2]
[341334047,1730815640669,-164.999738,0.00021918,2]
[341334048,1730815640692,-153.12664363,0.00021918,2]
[341334049,1730815640714,-913.09014164,0.00022,2]
[341334050,1730815640736,-420.0,0.00022207,2]
[341334051,1730815640758,-225.0,0.00022443,2]
[341334052,1730815640781,-177.83918919,0.00022633,2]
[341334053,1730815640809,-174.553611,0.00022668,2]
[341334054,1730815640832,-174.553611,0.00022684,2]
[341334055,1730815640858,-174.553611,0.000227,2]
[341334056,1730815640880,-174.553611,0.00022717,2]
[341334057,1730815640905,-5000.0,0.00022731,2]
[341334058,1730815640928,-174.553611,0.00022733,2]
[341334059,1730815640954,-174.553611,0.00022749,2]
[341334060,1730815640975,-151.0,0.00022749,7]
[341334061,1730815640995,-151.0,0.00022749,7]
[341334062,1730815641020,-165.971284,0.00022749,7]
[341334063,1730815641042,-151.0,0.00022749,7]
[341334064,1730815641064,-151.0,0.00022749,7]
[341334065,1730815641085,-151.0,0.00022749,7]
[341334066,1730815641109,-251.447011,0.00022749,7]
[341334067,1730815641131,-151.0,0.00022749,7]
[341334068,1730815641152,-151.0,0.00022749,7]
[341334069,1730815641173,-151.0,0.00022749,7]
[341334070,1730815641196,-151.0,0.00022749,7]
[341334071,1730815641219,-151.0,0.00022749,7]
[341334072,1730815641240,-160.051632,0.00022749,7]
[341334073,1730815641262,-160.051632,0.00022749,7]
[341334074,1730815641295,-174.553611,0.00022765,2]
[341334075,1730815641316,-174.553611,0.00022781,2]
[341334076,1730815641337,-294.6435752,0.00022822,2]
[341334077,1730815641360,-153.0,0.00022822,2]
[341334078,1730815641382,-1756.2555454,0.00023397,2]
[341334079,1730815641403,-153.0,0.00023781,2]
[341334080,1730815641426,-153.0,0.00023781,2]
[341334081,1730815641450,-499.9999991,0.0002388,2]
[341334082,1730815641470,-303.3217478,0.00023918,2]
[341334083,1730815641491,-303.3217478,0.00023918,2]
[341334084,1730815641513,-303.3217478,0.00023918,2]
[341334085,1730815641534,-500.0,0.00023973,2]
[341334086,1730815641556,-502.84952735,0.00023973,2]
[341334087,1730815641578,-500.0,0.00023973,2]
[341334088,1730815641689,-151.0,0.00024042,7]
[341334089,1730815641714,-151.0,0.00024042,7]
[341334090,1730815641735,-587.0,0.00024171,2]
[341334091,1730815641759,-151.0,0.00024342,7]
[341334092,1730815641782,-151.0,0.00024342,7]
[341334093,1730815641807,-241.131362,0.00024342,7]
[341334094,1730815641829,-151.0,0.00024342,7]
[341334095,1730815641853,-151.0,0.00024342,7]
[341334096,1730815641877,-151.0,0.00024342,7]
[341334097,1730815641902,-151.0,0.00024342,7]
[341334098,1730815641928,-164.924198,0.00024342,7]
[341334099,1730815641957,-164.924198,0.00024342,7]
[341334100,1730815641980,-151.0,0.00024342,7]
[341334101,1730815642003,-151.0,0.00024342,7]
[341334102,1730815642024,-151.0,0.00024342,7]
[341334103,1730815642048,-151.0,0.00024342,7]
[341334104,1730815642078,-151.0,0.00024342,7]
[341334105,1730815642099,-151.0,0.00024342,7]
[341334106,1730815642120,-151.0,0.00024342,7]
[341334107,1730815642144,-151.0,0.00024342,7]
[341334108,1730815642168,-160.051632,0.00024342,7]
[341334109,1730815642193,-154.858244,0.00024342,7]
[341334110,1730815642215,-160.051632,0.00024342,7]
[341334111,1730815642242,-154.858244,0.00024342,7]
[341334112,1730815642267,-151.0,0.00024342,7]
[341334113,1730815642288,-150.01,0.00024344,2]
[341334114,1730815642309,-1181.15125909,0.00024344,2]
[341334115,1730815642329,-151.0,0.00024344,7]
[341334116,1730815642352,-151.0,0.00024344,7]
[341334117,1730815642373,-153.275418,0.00024344,7]
[341334118,1730815642394,-151.0,0.00024344,7]
[341334119,1730815642415,-151.0,0.00024344,7]
[341334120,1730815642439,-251.698208,0.00024344,7]
[341334121,1730815642460,-151.0,0.00024344,7]
[341334122,1730815642482,-175.274374,0.00024344,7]
[341334123,1730815642504,-164.924198,0.00024344,7]
[341334124,1730815642526,-164.924198,0.00024344,7]
[341334125,1730815642548,-151.0,0.00024344,7]
[341334126,1730815642570,-151.0,0.00024344,7]
[341334127,1730815642590,-151.0,0.00024344,7]
[341334128,1730815642612,-151.0,0.00024344,7]
[341334129,1730815642634,-151.0,0.00024344,7]
[341334130,1730815642656,-160.051632,0.00024344,7]
[341334131,1730815642681,-154.858244,0.00024344,7]
[341334132,1730815642704,-160.051632,0.00024344,7]
[341334133,1730815642726,-154.858244,0.00024344,7]
[341334134,1730815642747,-151.0,0.00024344,7]
[341334135,1730815642770,-151.0,0.00024344,7]
[341334136,1730815642793,-212.361394,0.00024344,7]
[341334137,1730815642819,-5000.0,0.00024656,2]
[341334138,1730815642841,-151.0,0.00024656,7]
[341334139,1730815642863,-151.0,0.00024656,7]
[341334140,1730815642885,-151.0,0.00024656,7]
[341334141,1730815642907,-151.0,0.00024656,7]
[341334142,1730815642928,-151.0,0.00024656,7]
[341334143,1730815642950,-151.0,0.00024656,7]
[341334144,1730815642973,-151.0,0.00024656,7]
[341334145,1730815642996,-160.051632,0.00024656,7]
[341334146,1730815643018,-154.858244,0.00024656,7]
[341334147,1730815643042,-160.051632,0.00024656,7]
[341334148,1730815643064,-154.858244,0.00024656,7]
[341334149,1730815643085,-151.0,0.00024656,7]
[341334150,1730815643108,-151.0,0.00024656,7]
[341334151,1730815643130,-151.0,0.00024657,7]
[341334152,1730815643152,-151.0,0.00024657,7]
[341334153,1730815643174,-151.0,0.00024657,7]
[341334154,1730815643199,-151.0,0.00024657,7]
[341334155,1730815643223,-151.0,0.00024657,7]
[341334156,1730815643247,-151.0,0.00024657,7]
[341334157,1730815643271,-164.924198,0.00024657,7]
[341334158,1730815643293,-164.924198,0.00024657,7]
[341334159,1730815643315,-151.0,0.00024658,7]
[341334160,1730815643338,-151.0,0.00024658,7]
[341334161,1730815643361,-151.0,0.00024658,7]
[341334162,1730815643383,-151.0,0.00024658,7]
[341334163,1730815643405,-151.0,0.00024658,7]
[341334164,1730815643428,-164.924198,0.00024658,7]
[341334165,1730815643453,-164.924198,0.00024658,7]
[341334166,1730815643475,-151.0,0.00024658,7]
[341334167,1730815643499,-151.0,0.00024658,7]
[341334168,1730815643522,-151.0,0.00024658,7]
[341334169,1730815643619,-151.0,0.00024658,7]
[341334170,1730815643642,-500.0,0.00024658,2]
[341334171,1730815643666,-500.0,0.00024658,2]
[341334172,1730815643689,-303.00288977,0.00024658,2]
[341334173,1730815643712,-500.0,0.00024658,2]
[341334174,1730815643735,-500.0,0.00024658,2]
[341334175,1730815643759,-500.0,0.00024658,2]
[341334176,1730815643783,-530.82895584,0.00024658,2]
[341334177,1730815643810,-500.0,0.00024658,2]
[341334178,1730815643834,-500.0,0.00024658,2]
[341334179,1730815643859,-500.0,0.00024658,2]
[341334180,1730815643883,-151.0,0.00024658,7]
[341334181,1730815643907,-151.0,0.00024658,7]
[341334182,1730815643931,-253.443234,0.00024658,7]
[341334183,1730815643956,-151.0,0.00024658,7]
[341334184,1730815643979,-151.0,0.00024658,7]
[341334185,1730815644003,-151.0,0.00024658,7]
[341334186,1730815644027,-151.0,0.00024658,7]
[341334187,1730815644050,-160.051632,0.00024658,7]
[341334188,1730815644072,-160.051632,0.00024658,7]
[341334189,1730815644094,-154.858244,0.00024658,7]
[341334190,1730815644117,-154.858244,0.00024658,7]
[341334191,1730815644139,-160.051632,0.00024658,7]
[341334192,1730815644160,-160.051632,0.00024658,7]
[341334193,1730815644183,-154.858244,0.00024658,7]
[341334194,1730815644205,-154.858244,0.00024658,7]
[341334195,1730815644227,-151.0,0.00024658,7]
[341334196,1730815644249,-151.0,0.00024658,7]
[341334197,1730815644271,-151.0,0.00024658,7]
[341334198,1730815644293,-151.0,0.00024658,7]
[341334199,1730815644314,-1294.84,0.00024665,3]
[341334200,1730815644335,-647.42,0.00024665,3]
[341334201,1730815644355,-323.71,0.00024665,3]
[341334202,1730815644376,-161.86,0.00024665,3]
[341334203,1730815644398,-485.59,0.00024665,3]
[341334204,1730815644420,-836.18,0.00024665,10]
[341334205,1730815644445,-1025.9,0.00024665,10]
[341334206,1730815644466,-151.0,0.00024675,7]
[341334207,1730815644488,-151.0,0.00024675,7]
[341334208,1730815644511,-164.924198,0.00024675,7]
[341334209,1730815644535,-164.924198,0.00024675,7]
[341334210,1730815644556,-1000.0,0.00024675,7]
[341334211,1730815644577,-1000.0,0.00024675,7]
[341334212,1730815644597,-1000.0,0.00024675,7]
[341334213,1730815644621,-1000.0,0.00024675,7]
[341334214,1730815644643,-1000.0,0.00024675,7]
[341334215,1730815644664,-1000.0,0.00024675,7]
[341334216,1730815644689,-1000.0,0.00024675,7]
[341334217,1730815644713,-1000.0,0.00024675,7]
[341334218,1730815644735,-1000.0,0.00024675,7]
[341334219,1730815644759,-1000.0,0.00024675,7]
[341334220,1730815644780,-1000.0,0.00024675,7]
[341334221,1730815644804,-1000.0,0.00024675,7]
[341334222,1730815644827,-1000.0,0.00024675,7]
[341334223,1730815644849,-1000.0,0.00024675,7]
[341334224,1730815644874,-1000.0,0.00024675,7]
[341334225,1730815644900,-1000.0,0.00024675,7]
[341334226,1730815644922,-1000.0,0.00024675,7]
[341334227,1730815644943,-1000.0,0.00024675,7]
[341334228,1730815644964,-1000.0,0.00024675,7]
[341334229,1730815644988,-1000.0,0.00024675,7]
[341334230,1730815645010,-1000.0,0.00024675,7]
[341334231,1730815645032,-1000.0,0.00024675,7]
[341334232,1730815645054,-1000.0,0.00024675,7]
[341334233,1730815645076,-1000.0,0.00024675,7]
[341334234,1730815645100,-1000.0,0.00024675,7]
[341334235,1730815645122,-1000.0,0.00024675,7]
[341334236,1730815645146,-1000.0,0.00024675,7]
[341334237,1730815645168,-1000.0,0.00024675,7]
[341334238,1730815645193,-1000.0,0.00024675,7]
[341334239,1730815645215,-1000.0,0.00024675,7]
[341334240,1730815645236,-1000.0,0.00024675,7]
[341334241,1730815645257,-1000.0,0.00024675,7]
[341334242,1730815645279,-1000.0,0.00024675,7]
[341334243,1730815645302,-1000.0,0.00024675,7]
[341334244,1730815645325,-1000.0,0.00024675,7]
[341334245,1730815645349,-1000.0,0.00024675,7]
[341334246,1730815645443,-1000.0,0.00024675,7]
[341334247,1730815645465,-1000.0,0.00024675,7]
[341334248,1730815645492,-1000.0,0.00024675,7]
[341334249,1730815645515,-296.46928191,0.00024675,7]
[341334250,1730815645538,-151.0,0.00024675,7]
[341334251,1730815645560,-151.0,0.00024675,7]
[341334252,1730815645582,-151.0,0.00024675,7]
[341334253,1730815645604,-151.0,0.00024675,7]
[341334254,1730815645627,-151.0,0.00024675,7]
[341334255,1730815645649,-151.0,0.00024675,7]
[341334256,1730815645673,-151.0,0.00024675,7]
[341334257,1730815645699,-151.0,0.00024675,7]
[341334258,1730815645723,-153.676505,0.00024675,7]
[341334259,1730815645745,-160.051632,0.00024675,7]
[341334260,1730815645768,-160.051632,0.00024675,7]
[341334261,1730815645792,-160.051632,0.00024675,7]
[341334262,1730815645821,-160.051632,0.00024675,7]
[341334263,1730815645847,-154.858244,0.00024675,7]
[341334264,1730815645871,-154.858244,0.00024675,7]
[341334265,1730815645896,-154.858244,0.00024675,7]
[341334266,1730815645918,-160.051632,0.00024675,7]
[341334267,1730815645945,-154.858244,0.00024675,7]
[341334268,1730815645968,-160.051632,0.00024675,7]
[341334269,1730815645994,-160.051632,0.00024675,7]
[341334270,1730815646018,-154.858244,0.00024675,7]
[341334271,1730815646041,-160.051624,0.00024675,7]
[341334272,1730815646064,-154.858244,0.00024675,7]
[341334273,1730815646087,-154.858244,0.00024675,7]
[341334274,1730815646112,-154.858244,0.00024675,7]
[341334275,1730815646135,-154.858244,0.00024675,7]
[341334276,1730815646159,-154.858254,0.00024675,7]
[341334277,1730815646183,-151.0,0.00024675,7]
[341334278,1730815646208,-151.0,0.00024675,7]
[341334279,1730815646231,-151.0,0.00024675,7]
[341334280,1730815646255,-151.0,0.00024675,7]
[341334281,1730815646279,-151.0,0.00024675,7]
[341334282,1730815646301,-151.0,0.00024685,7]
[341334283,1730815646323,-151.0,0.00024685,7]
[341334284,1730815646345,-151.0,0.00024685,7]
[341334285,1730815646367,-151.0,0.00024685,7]
[341334286,1730815646389,-151.0,0.00024685,7]
[341334287,1730815646411,-151.0,0.00024685,7]
[341334288,1730815646432,-151.0,0.00024685,7]
[341334289,1730815646458,-151.0,0.00024685,7]
[341334290,1730815646480,-151.0,0.00024685,7]
[341334291,1730815646502,-151.0,0.00024685,7]
[341334292,1730815646524,-151.0,0.00024685,7]
[341334293,1730815646545,-243.408311,0.00024685,7]
[341334294,1730815646568,-164.924198,0.00024685,7]
[341334295,1730815646590,-164.924198,0.00024685,7]
[341334296,1730815646613,-164.924198,0.00024685,7]
[341334297,1730815646636,-164.924198,0.00024685,7]
[341334298,1730815646661,-164.924198,0.00024685,7]
[341334299,1730815646683,-164.924198,0.00024685,7]
[341334300,1730815646709,-164.924198,0.00024685,7]
[341334301,1730815646732,-164.924198,0.00024685,7]
[341334302,1730815646755,-164.924198,0.00024685,7]
[341334303,1730815646779,-164.924208,0.00024685,7]
[341334304,1730815646805,-151.0,0.00024685,7]
[341334305,1730815646831,-151.0,0.00024685,7]
[341334306,1730815646853,-151.0,0.00024685,7]
[341334307,1730815646876,-151.0,0.00024685,7]
[341334308,1730815646900,-151.0,0.00024685,7]
[341334309,1730815646922,-151.0,0.00024685,7]
[341334310,1730815646946,-151.0,0.00024685,7]
[341334311,1730815646970,-151.0,0.00024685,7]
[341334312,1730815646992,-151.0,0.00024685,7]
[341334313,1730815647013,-151.0,0.00024685,7]
[341334314,1730815647035,-224.428452,0.00024685,7]
[341334315,1730815647056,-525.64938564,0.00024713,2]
[341334316,1730815647078,-151.0,0.00024894,7]
[341334317,1730815647099,-1139.0,0.00024964,2]
[341334318,1730815647120,-2394.0,0.00024964,2]
[341334319,1730815647140,-302.78807257,0.00025,2]
[341334320,1730815647233,-167.466,0.0002509,9]
[341334321,1730815647254,-151.43942271,0.0002525,2]
[341334322,1730815647275,-1000.0,0.00025343,2]
[341334323,1730815647299,-1000.0,0.00025343,2]
[341334324,1730815647320,-208.0479431,0.00025562,2]
[341334325,1730815647340,-255.0,0.0002587,15]
[341334326,1730815647363,-5000.0,0.00025948,2]
[341334327,1730815647384,-468.03246928,0.00025949,2]
[341334328,1730815647407,-5000.0,0.00025958,2]
[341334329,1730815647428,-150.645,0.00025959,2]
[341334330,1730815647450,-150.0,0.00025959,2]
[341334331,1730815647472,-529.0,0.00025959,2]
[341334332,1730815647495,-5000.0,0.00026012,2]
[341334333,1730815647517,-2589.68,0.00026035,3]
[341334334,1730815647539,-1294.84,0.00026035,3]
[341334335,1730815647561,-647.42,0.00026035,3]
[341334336,1730815647584,-323.72,0.00026035,3]
[341334337,1730815647608,-823.0,0.00026309,2]
[341334338,1730815647630,-211.2353105,0.00026384,2]
[341334339,1730815647652,-211.2353105,0.00026384,2]
[341334340,1730815647674,-211.2353105,0.00026384,2]
[341334341,1730815647698,-303.3217478,0.00026384,2]
[341334342,1730815647720,-208.44690881,0.00026384,2]
[341334343,1730815647836,-94.87483899,0.00026384,2]
[341334344,1730815647861,-259.343988,0.00026921,2]
[341334345,1730815647883,-160.0,0.00027,2]
[341334346,1730815647904,-324.0,0.00027,2]
[341334347,1730815647924,-165.0,0.00027,2]
[341334348,1730815647946,-1000.0,0.00027228,2]
[341334349,1730815647969,-465.15162346,0.00027246,2]
[341334350,1730815647992,-1911.65796756,0.00027275,2]
[341334351,1730815648216,-894.96199193,0.00026481,2]
[341334352,1730815648493,-151.0,0.00023973,7]
[341334353,1730815648515,-151.0,0.00024344,7]
[341334354,1730815648536,-151.0,0.00024656,7]
[341334355,1730815648559,-854.91,0.00024665,10]
[341334356,1730815648579,-302.78807257,0.00025,2]
[341334357,1730815648600,-302.78807257,0.0002525,2]
[341334358,1730815648620,-302.78807257,0.000255,2]
[341334359,1730815648716,-302.78807257,0.0002575,2]
[341334360,1730815648739,-302.78807257,0.00026,2]
[341334361,1730815648760,-454.18210886,0.0002625,4]
[341334362,1730815648784,-861.29355347,0.00026481,2]
[341334363,1730815648811,-454.18210886,0.000265,4]
[341334364,1730815648832,-454.16698007,0.0002675,4]
[341334365,1730815648859,-3088.34203244,0.00027275,2]
[341334366,1730815648881,-20.32657763,0.00027397,2]
[341334493,1730815762084,-520.83333333,0.00020272,2]
[341334494,1730815783746,177.2923676,0.00020229,2]
[341334551,1730815832468,-343.54096573,0.00020229,2]
[341334553,1730815832479,-5000.0,0.00021917,2]
[341334555,1730815832491,-300.0,0.00022729,2]
[341334558,1730815832502,-3225.41051228,0.0002273,2]
[341334617,1730815841338,-1774.58948772,0.0002273,2]
[341334618,1730815841348,-151.0,0.00024042,7]
[341334619,1730815841357,-151.0,0.00024344,7]
[341334620,1730815841366,-175.96204482,0.00024654,2]
[341334621,1730815841375,-235.8014,0.00024654,2]
[341334622,1730815841385,-3755.23782207,0.00024655,2]
[341334623,1730815841395,-151.0,0.00024656,7]
[341334624,1730815841405,-151.0,0.00024658,7]
[341334625,1730815841415,-151.0,0.00024658,7]
[341334626,1730815841423,-447.86988398,0.00024658,2]
[341334627,1730815841431,-151.0,0.00024675,7]
[341334628,1730815841440,-151.0,0.00024675,7]
[341334629,1730815841450,-151.0,0.00024675,7]
[341334630,1730815841459,-151.0,0.00024675,7]
[341334631,1730815841471,-151.0,0.00024675,7]
[341334632,1730815841481,-420.0,0.0002468,2]
[341334633,1730815841490,-587.0,0.00026799,2]
[341334634,1730815841499,-165.0,0.00027,2]
[341334635,1730815841509,-263.83405491,0.00027396,2]
[341334636,1730815841518,-787.43417272,0.00027396,2]
[341334637,1730815841527,-182.64770149,0.00027397,2]
[341334638,1730815841536,-324.0,0.00027671,2]
[341334639,1730815841546,-165.0,0.00027671,2]
[341334640,1730815841556,-500.0,0.00027708,7]
[341334641,1730815841567,-170.25,0.00027708,7]
[341334642,1730815841576,-1097.65971591,0.0002791,2]
[341334643,1730815841585,-1139.0,0.00027964,2]
[341334644,1730815841600,-2394.0,0.00027964,2]
[341334645,1730815841609,-177.83918918,0.0002798,2]
[341334646,1730815841619,-3000.0,0.00028,2]
[341334647,1730815841628,-1051.80324228,0.00028,4]
[341334648,1730815841640,-1141.39776332,0.00028,4]
[341334674,1730815846575,520.83333333,0.00020185,2]
[341335646,1730815983576,220.442389,0.00013973,2]
[341335675,1730816458741,520.83333333,0.00020185,2]
[341335676,1730816493193,2159.72742643,0.0001,2]
[341335746,1730816732163,-220.442389,0.00020447,2]
[341335747,1730816732186,-175.561209,0.0002429,2]
[341335748,1730816732209,-208.152854,0.00024821,2]
[341335749,1730816732231,-175.561209,0.00024975,2]
[341335750,1730816732253,-2125.02011839,0.00024983,2]
[341335757,1730816737107,-874.97988161,0.00024983,2]
[341335758,1730816737138,-300.0,0.00025081,2]
[341335759,1730816737170,-156.65758258,0.00025081,2]
[341335760,1730816737201,-3101.25811225,0.00025082,2]
[341335790,1730816829130,-520.83333333,0.00024017,2]
[341335791,1730816829156,-300.0,0.00025081,2]
[341335792,1730816829182,-251.0,0.00025081,2]
[341335793,1730816829209,-21798.74188775,0.00025082,2]
[341335794,1730816829241,-500.0,0.000251,2]
[341335795,1730816829265,-1627.36910963,0.00025309,2]
[341335796,1730816829292,-175.561209,0.0002566,2]
[341335797,1730816829315,-150.0,0.00025745,2]
[341335798,1730816829338,-1139.0,0.00025745,2]
[341335799,1730816829360,-529.0,0.00025745,2]
[341335800,1730816829387,-2394.0,0.00025745,2]
[341335801,1730816829410,-160.530949,0.00025917,2]
[341335802,1730816829432,-3000.0,0.00025942,2]
[341335803,1730816829456,-1000.0,0.0002647,2]
[341335804,1730816829487,-167.466,0.00026575,13]
[341335805,1730816829510,-3177.38609083,0.00026782,2]
[341335806,1730816829533,-220.442389,0.00026921,2]
[341335807,1730816829556,-243.0,0.00027,2]
[341335808,1730816829578,-165.0,0.00027,2]
[341335809,1730816829600,-160.0,0.00027,2]
[341335810,1730816829621,-153.0,0.00027616,30]
[341335811,1730816829644,-153.0,0.00027616,30]
[341335812,1730816829666,-153.0,0.00027616,30]
[341335813,1730816829689,-243.0,0.00027671,2]
[341335814,1730816829710,-500.0,0.00027708,7]
[341335815,1730816829736,-500.0,0.00027708,7]
[341335816,1730816829757,-500.0,0.00027708,7]
[341335817,1730816829780,-600.58,0.00027708,7]
[341335818,1730816829802,-153.0,0.00027792,2]
[341335819,1730816829825,-153.0,0.00027793,2]
[341335820,1730816829854,-1177.0,0.000279,4]
[341335821,1730816829878,-787.43417273,0.00027999,2]
[341335822,1730816829903,-3000.0,0.00028,2]
[341335823,1730816829926,-2935.6159944,0.00028,4]
[341335824,1730816829950,-3000.0,0.0002801,2]
[341335825,1730816829975,-3000.0,0.0002802,2]
[341335826,1730816829997,-3000.0,0.0002803,2]
[341335827,1730816830020,-3000.0,0.0002804,2]
[341335828,1730816830043,-3000.0,0.0002805,2]
[341335829,1730816830066,-3000.0,0.0002806,2]
[341335830,1730816830089,-151.0,0.0002806,7]
[341335831,1730816830111,-178.777265,0.0002806,7]
[341335832,1730816830133,-151.0,0.0002806,7]
[341335833,1730816830157,-151.0,0.0002806,7]
[341335834,1730816830192,-3000.0,0.0002807,2]
[341335835,1730816830216,-151.0,0.0002808,7]
[341335836,1730816830243,-3000.0,0.0002808,2]
[341335837,1730816830264,-151.0,0.0002809,7]
[341335838,1730816830287,-177.504509,0.0002809,7]
[341335839,1730816830310,-3000.0,0.0002809,2]
[341335840,1730816830333,-151.0,0.000281,7]
[341335841,1730816830357,-3000.0,0.000281,2]
[341335842,1730816830382,-151.0,0.000281,7]
[341335843,1730816830407,-150.697194,0.000281,2]
[341335844,1730816830430,-151.0,0.000281,7]
[341335845,1730816830453,-3000.0,0.0002811,2]
[341335846,1730816830484,-151.0,0.0002812,7]
[341335847,1730816830509,-3000.0,0.0002812,2]
[341335848,1730816830532,-151.0,0.0002813,7]
[341335849,1730816830559,-3000.0,0.0002813,2]
[341335850,1730816830583,-151.0,0.0002814,7]
[341335851,1730816830610,-3000.0,0.0002814,2]
[341335852,1730816830633,-3000.0,0.0002815,2]
[341335853,1730816830655,-151.0,0.0002816,7]
[341335854,1730816830678,-3000.0,0.0002816,2]
[341335855,1730816830700,-593.69,0.0002816,10]
[341335856,1730816830726,-3000.0,0.0002817,2]
[341335857,1730816830749,-712.43,0.0002817,10]
[341335858,1730816830770,-151.0,0.0002818,7]
[341335859,1730816830793,-162.826,0.0002818,2]
[341335860,1730816830816,-3000.0,0.0002818,2]
[341335861,1730816830839,-3000.0,0.0002819,2]
[341335862,1730816830862,-151.6608739,0.00028192,30]
[341335863,1730816830885,-151.0,0.000282,7]
[341335864,1730816830907,-3000.0,0.000282,2]
[341335865,1730816831023,-3000.0,0.0002821,2]
[341335866,1730816831047,-151.0,0.0002822,7]
[341335867,1730816831071,-3000.0,0.0002822,2]
[341335868,1730816831096,-3000.0,0.0002823,2]
[341335870,1730816831119,-151.0,0.0002824,7]